[Event "44th Chess Olympiad Women 2022"]
[Site "Chennai"]
[Date "2022.08.05"]
[Round "7.35"]
[White "Nassr, Lina"]
[Black "February, Jesse Nikki"]
[Result "1-0"]
[WhiteElo "2011"]
[BlackElo "1872"]
[Annotator "NA RC"]
[PlyCount "107"]
[EventDate "2022.??.??"]
[TimeControl "60"]

1. c4 {[%emt 0:00:12]} e6 {[%emt 0:00:47]} 2. e3 {[%emt 0:00:28]} Nf6 {[%emt 0:
00:00]} 3. Nc3 {[%emt 0:00:30]} d5 {[%emt 0:00:23]} 4. Nf3 {[%emt 0:00:44]} Be7
{[%emt 0:00:57]} 5. d4 {[%emt 0:00:39]} O-O {[%emt 0:00:27]} 6. cxd5 {[%emt 0:
00:00]} exd5 {[%emt 0:00:08]} 7. Bd3 {[%emt 0:00:08]} b6 {[%emt 0:04:14]} 8.
O-O {[%emt 0:01:52]} Bb7 {[%emt 0:02:25]} 9. b3 {[%emt 0:02:44]} Nbd7 {[%emt 0:
00:00]} 10. Bb2 {[%emt 0:01:45]} Ne4 {[%emt 0:03:29]} 11. Rc1 {[%emt 0:00:36]}
c5 {[%emt 0:01:33]} 12. Ne2 {[%emt 0:12:12]} h5 {[%emt 0:05:21]} 13. Ne5 {
[%emt 0:08:02]} Bd6 {[%emt 0:11:12]} 14. Nf4 {[%emt 0:10:46]} h4 {[%emt 0:00:
00]} 15. Qh5 {[%emt 0:09:24]} Bxe5 {[%emt 0:04:13]} 16. dxe5 {[%emt 0:04:49]}
Qg5 {[%emt 0:00:27]} 17. Bxe4 {[%emt 0:04:53]} Qxh5 {[%emt 0:00:14]} 18. Nxh5 {
[%emt 0:00:04]} dxe4 {[%emt 0:00:42]} 19. Rfd1 {[%emt 0:05:22]} Nb8 {[%emt 0:
00:00]} 20. e6 {[%emt 0:07:33]} fxe6 {[%emt 0:02:21]} 21. Nxg7 {[%emt 0:09:28]}
Bd5 {[%emt 0:02:07]} 22. Nh5 {[%emt 0:00:20]} Nd7 {[%emt 0:02:41]} 23. Nf4 {
[%emt 0:01:29]} Rf5 {[%emt 0:02:14]} 24. Rd2 {[%emt 0:01:40]} b5 {[%emt 0:00:
00]} 25. g4 {[%emt 0:07:03]} hxg3 {[%emt 0:01:29]} 26. hxg3 {[%emt 0:00:15]}
Kf7 {[%emt 0:03:22]} 27. Kg2 {[%emt 0:00:23]} Rg8 {[%emt 0:01:39]} 28. Rh1 {
[%emt 0:03:39]} a5 {[%emt 0:07:36]} 29. Rh7+ {[%emt 0:01:42]} Ke8 {[%emt 0:00:
00]} 30. Rd1 {[%emt 0:01:37]} a4 {[%emt 0:03:21]} 31. bxa4 {[%emt 0:02:33]}
bxa4 {[%emt 0:01:02]} 32. Bc3 {[%emt 0:00:56]} Kd8 {[%emt 0:03:33]} 33. Rb1 {
[%emt 0:01:33]} Kc8 {[%emt 0:00:35]} 34. Rb2 {[%emt 0:00:43]} a3 {[%emt 0:00:
00]} 35. Rb5 {[%emt 0:00:22]} Bxa2 {[%emt 0:07:08]} 36. Ra5 {[%emt 0:00:10]} e5
{[%emt 0:00:10]} 37. Ra8+ {[%emt 0:00:59]} Nb8 {[%emt 0:00:17]} 38. Nh3 {
[%emt 0:00:48]} Re8 {[%emt 0:06:45]} 39. Rxa3 {[%emt 0:00:21]} Bf7 {[%emt 0:00:
00]} 40. Ra7 {[%emt 0:00:27]} Nd7 {[%emt 0:00:34]} 41. Ba5 {[%emt 0:10:05]} Re7
{[%emt 0:08:07]} 42. Rc7+ {[%emt 0:08:17]} Kb8 {[%emt 0:00:13]} 43. g4 {
[%emt 0:00:59]} Rf6 {[%emt 0:02:36]} 44. Ng5 {[%emt 0:01:43]} c4 {[%emt 0:00:
00]} 45. Nxf7 {[%emt 0:05:10]} Rexf7 {[%emt 0:02:34]} 46. Rh8+ {[%emt 0:01:51]}
Rf8 {[%emt 0:03:02]} 47. Rxf8+ {[%emt 0:00:12]} Nxf8 {[%emt 0:00:07]} 48. Rxc4
{[%emt 0:00:09]} Nd7 {[%emt 0:02:36]} 49. Rxe4 {[%emt 0:01:07]} Rg6 {[%emt 0:
00:00]} 50. Kg3 {[%emt 0:00:49]} Kb7 {[%emt 0:01:12]} 51. Bc3 {[%emt 0:00:54]}
Nf6 {[%emt 0:02:07]} 52. Rb4+ {[%emt 0:00:26]} Kc6 {[%emt 0:00:34]} 53. Bxe5 {
[%emt 0:00:35]} Kc5 {[%emt 0:00:07]} 54. Rd4 {[%emt 0:00:15]} 1-0

[Event "44th Chess Olympiad Women 2022"]
[Site "Chennai"]
[Date "2022.08.05"]
[Round "7.35"]
[White "Nassr, Rania"]
[Black "Badenhorst, Chloe"]
[Result "1/2-1/2"]
[WhiteElo "1737"]
[BlackElo "1703"]
[Annotator "NA"]
[PlyCount "78"]
[EventDate "2022.??.??"]
[TimeControl "60"]

1. c4 {[%emt 0:00:15]} Nf6 {[%emt 0:00:23]} 2. Nc3 {[%emt 0:00:26]} d5 {
[%emt 0:00:20]} 3. cxd5 {[%emt 0:01:39]} Nxd5 {[%emt 0:00:06]} 4. e4 {[%emt 0:
00:00]} Nxc3 {[%emt 0:02:29]} 5. bxc3 {[%emt 0:00:29]} g6 {[%emt 0:00:50]} 6.
d4 {[%emt 0:05:29]} Bg7 {[%emt 0:00:20]} 7. Bc4 {[%emt 0:02:57]} O-O {[%emt 0:
00:00]} 8. Ne2 {[%emt 0:00:52]} c5 {[%emt 0:00:33]} 9. O-O {[%emt 0:12:30]} Nc6
{[%emt 0:04:42]} 10. Be3 {[%emt 0:09:08]} cxd4 {[%emt 0:01:26]} 11. cxd4 {
[%emt 0:04:10]} Bd7 {[%emt 0:07:53]} 12. Rb1 {[%emt 0:04:13]} Rc8 {[%emt 0:00:
00]} 13. Bd3 {[%emt 0:03:46]} b6 {[%emt 0:07:52]} 14. Ba6 {[%emt 0:11:15]} Rc7
{[%emt 0:03:58]} 15. d5 {[%emt 0:08:25]} Ne5 {[%emt 0:08:59]} 16. Bd4 {[%emt 0:
00:00]} Bc8 {[%emt 0:05:26]} 17. Bb5 {[%emt 0:04:47]} Nd7 {[%emt 0:14:56]} 18.
Bxg7 {[%emt 0:01:29]} Kxg7 {[%emt 0:00:11]} 19. Nd4 {[%emt 0:01:50]} Bb7 {
[%emt 0:04:25]} 20. f4 {[%emt 0:05:12]} Nf6 {[%emt 0:10:01]} 21. Qd3 {[%emt 0:
00:00]} Nxd5 {[%emt 0:08:10]} 22. exd5 {[%emt 0:01:16]} Qxd5 {[%emt 0:00:05]}
23. Nf3 {[%emt 0:00:48]} Qxa2 {[%emt 0:04:01]} 24. Ra1 {[%emt 0:01:57]} Qb2 {
[%emt 0:01:45]} 25. Rfb1 {[%emt 0:00:34]} Qf6 {[%emt 0:01:28]} 26. Rxa7 {
[%emt 0:00:24]} Be4 {[%emt 0:00:55]} 27. Qxe4 {[%emt 0:00:42]} Rxa7 {[%emt 0:
00:00]} 28. Ne5 {[%emt 0:00:18]} Qd6 {[%emt 0:02:00]} 29. Nc4 {[%emt 0:01:06]}
Qc5+ {[%emt 0:00:26]} 30. Kh1 {[%emt 0:00:19]} Rc8 {[%emt 0:01:12]} 31. h3 {
[%emt 0:00:48]} Rca8 {[%emt 0:01:05]} 32. Qe5+ {[%emt 0:01:11]} Qxe5 {[%emt 0:
00:00]} 33. Nxe5 {[%emt 0:00:08]} Ra1 {[%emt 0:00:17]} 34. Rxa1 {[%emt 0:00:22]
} Rxa1+ {[%emt 0:00:03]} 35. Kh2 {[%emt 0:00:06]} Ra5 {[%emt 0:00:50]} 36. Bc4
{[%emt 0:00:22]} Rc5 {[%emt 0:01:08]} 37. Bb3 {[%emt 0:01:24]} Rb5 {[%emt 0:00:
00]} 38. Bc4 {[%emt 0:00:19]} Rc5 {[%emt 0:00:07]} 39. Bb3 {[%emt 0:00:11]} Rb5
{[%emt 0:00:10]} 1/2-1/2

[Event "44th Chess Olympiad Women 2022"]
[Site "Chennai"]
[Date "2022.08.05"]
[Round "7.35"]
[White "Van Zyl, Charlize"]
[Black "Abdi, Zineb Dina"]
[Result "0-1"]
[WhiteElo "1704"]
[BlackElo "1899"]
[Annotator "NA"]
[PlyCount "106"]
[EventDate "2022.??.??"]
[TimeControl "60"]

1. d4 {[%emt 0:00:03]} Nf6 {[%emt 0:00:21]} 2. c4 {[%emt 0:00:14]} e6 {[%emt 0:
00:00]} 3. g3 {[%emt 0:00:17]} d5 {[%emt 0:01:08]} 4. Bg2 {[%emt 0:00:08]} Nbd7
{[%emt 0:00:50]} 5. Nf3 {[%emt 0:01:55]} dxc4 {[%emt 0:01:22]} 6. Qa4 {[%emt 0:
00:00]} a6 {[%emt 0:01:37]} 7. Nc3 {[%emt 0:01:47]} Be7 {[%emt 0:05:47]} 8.
Qxc4 {[%emt 0:04:37]} O-O {[%emt 0:05:38]} 9. Bf4 {[%emt 0:05:31]} c5 {[%emt 0:
00:00]} 10. dxc5 {[%emt 0:14:22]} Bxc5 {[%emt 0:01:17]} 11. Ne5 {[%emt 0:01:41]
} Qe7 {[%emt 0:18:31]} 12. O-O {[%emt 0:02:07]} Nxe5 {[%emt 0:12:08]} 13. Bxe5
{[%emt 0:00:07]} Nd7 {[%emt 0:00:20]} 14. Bf4 {[%emt 0:08:07]} Nb6 {[%emt 0:00:
00]} 15. Qe4 {[%emt 0:03:13]} f5 {[%emt 0:02:09]} 16. Qc2 {[%emt 0:00:05]} e5 {
[%emt 0:04:09]} 17. Nd5 {[%emt 0:00:55]} Nxd5 {[%emt 0:03:35]} 18. Bxd5+ {
[%emt 0:00:09]} Kh8 {[%emt 0:01:21]} 19. Bd2 {[%emt 0:02:03]} Rd8 {[%emt 0:00:
00]} 20. e4 {[%emt 0:04:18]} fxe4 {[%emt 0:03:42]} 21. Bxe4 {[%emt 0:00:09]}
Bh3 {[%emt 0:00:45]} 22. Rfe1 {[%emt 0:04:35]} Rac8 {[%emt 0:00:47]} 23. Bc3 {
[%emt 0:00:55]} Rf8 {[%emt 0:04:04]} 24. Re2 {[%emt 0:02:23]} h6 {[%emt 0:00:
00]} 25. Rae1 {[%emt 0:08:09]} Bg4 {[%emt 0:01:16]} 26. Rd2 {[%emt 0:00:07]}
Bd4 {[%emt 0:01:04]} 27. Qb3 {[%emt 0:01:45]} Qg5 {[%emt 0:05:21]} 28. h4 {
[%emt 0:05:28]} Qf6 {[%emt 0:03:48]} 29. Bxd4 {[%emt 0:00:31]} exd4 {[%emt 0:
00:00]} 30. Qxb7 {[%emt 0:00:36]} Rb8 {[%emt 0:01:09]} 31. Qc6 {[%emt 0:00:53]}
Qxc6 {[%emt 0:02:30]} 32. Bxc6 {[%emt 0:00:04]} Rfd8 {[%emt 0:00:41]} 33. b3 {
[%emt 0:01:39]} Rd6 {[%emt 0:00:21]} 34. Re8+ {[%emt 0:03:14]} Rxe8 {[%emt 0:
00:00]} 35. Bxe8 {[%emt 0:00:03]} Bf3 {[%emt 0:00:57]} 36. Bf7 {[%emt 0:01:07]}
g5 {[%emt 0:00:32]} 37. Kh2 {[%emt 0:02:08]} Kg7 {[%emt 0:00:30]} 38. Bc4 {
[%emt 0:00:14]} Kf6 {[%emt 0:00:46]} 39. Be2 {[%emt 0:01:12]} Bxe2 {[%emt 0:00:
00]} 40. Rxe2 {[%emt 0:00:05]} d3 {[%emt 0:00:07]} 41. Rd2 {[%emt 0:30:05]} Ke5
{[%emt 0:02:29]} 42. hxg5 {[%emt 0:00:00]} hxg5 {[%emt 0:00:24]} 43. Kg2 {
[%emt 0:00:00]} Kd4 {[%emt 0:00:27]} 44. Kf1 {[%emt 0:00:00]} Kc3 {[%emt 0:00:
00]} 45. Rd1 {[%emt 0:00:00]} Kc2 {[%emt 0:00:56]} 46. Ra1 {[%emt 0:00:00]} d2
{[%emt 0:00:53]} 47. f4 {[%emt 0:00:00]} d1=Q+ {[%emt 0:00:30]} 48. Rxd1 {
[%emt 0:00:00]} Rxd1+ {[%emt 0:00:07]} 49. Ke2 {[%emt 0:00:00]} gxf4 {[%emt 0:
00:00]} 50. gxf4 {[%emt 0:00:00]} Rd8 {[%emt 0:00:23]} 51. b4 {[%emt 0:00:00]}
Rd4 {[%emt 0:00:52]} 52. Ke3 {[%emt 0:00:00]} Rxb4 {[%emt 0:00:12]} 53. f5 {
[%emt 0:00:00]} Kb2 {[%emt 0:00:38]} 0-1

[Event "44th Chess Olympiad Women 2022"]
[Site "Chennai"]
[Date "2022.08.05"]
[Round "7.36"]
[White "A-ALI, Sali Abbas Abdulzah"]
[Black "Mayorga Araya, Sofia"]
[Result "1/2-1/2"]
[WhiteElo "1864"]
[BlackElo "1758"]
[Annotator "NA"]
[PlyCount "141"]
[EventDate "2022.??.??"]
[TimeControl "60"]

1. e4 {[%emt 0:00:04]} c5 {[%emt 0:00:07]} 2. Nf3 {[%emt 0:00:07]} d6 {[%emt 0:
00:00]} 3. b3 {[%emt 0:00:30]} Nf6 {[%emt 0:01:53]} 4. Nc3 {[%emt 0:00:10]} Nc6
{[%emt 0:02:04]} 5. Bb2 {[%emt 0:00:20]} e6 {[%emt 0:01:36]} 6. Bb5 {[%emt 0:
00:00]} Bd7 {[%emt 0:01:46]} 7. O-O {[%emt 0:00:30]} Be7 {[%emt 0:04:44]} 8.
Re1 {[%emt 0:02:04]} Qc7 {[%emt 0:04:57]} 9. d4 {[%emt 0:08:03]} cxd4 {[%emt 0:
00:00]} 10. Nxd4 {[%emt 0:00:40]} a6 {[%emt 0:02:09]} 11. Bf1 {[%emt 0:01:27]}
O-O {[%emt 0:00:36]} 12. g3 {[%emt 0:07:00]} Rac8 {[%emt 0:05:47]} 13. Bg2 {
[%emt 0:03:01]} Rfd8 {[%emt 0:08:36]} 14. Nxc6 {[%emt 0:05:21]} Bxc6 {[%emt 0:
00:00]} 15. Qd3 {[%emt 0:05:10]} b5 {[%emt 0:02:20]} 16. Ne2 {[%emt 0:02:16]}
e5 {[%emt 0:07:11]} 17. Rac1 {[%emt 0:05:37]} d5 {[%emt 0:05:36]} 18. exd5 {
[%emt 0:01:14]} Nxd5 {[%emt 0:00:03]} 19. Qf5 {[%emt 0:01:11]} Bf6 {[%emt 0:00:
00]} 20. c4 {[%emt 0:09:03]} Ne7 {[%emt 0:04:19]} 21. Qb1 {[%emt 0:00:23]} Bxg2
{[%emt 0:00:16]} 22. Kxg2 {[%emt 0:00:17]} bxc4 {[%emt 0:00:06]} 23. Rxc4 {
[%emt 0:00:50]} Qb7+ {[%emt 0:00:21]} 24. Qe4 {[%emt 0:00:28]} Nd5 {[%emt 0:00:
00]} 25. Rec1 {[%emt 0:26:29]} Rxc4 {[%emt 0:12:44]} 26. Rxc4 {[%emt 0:00:07]}
Qb8 {[%emt 0:00:49]} 27. Ng1 {[%emt 0:01:24]} Nb6 {[%emt 0:03:58]} 28. Rc2 {
[%emt 0:00:16]} Nd7 {[%emt 0:01:05]} 29. Nf3 {[%emt 0:01:28]} Qd6 {[%emt 0:00:
00]} 30. Rd2 {[%emt 0:06:43]} Qc7 {[%emt 0:01:50]} 31. Nxe5 {[%emt 0:01:56]}
Nxe5 {[%emt 0:06:30]} 32. Rxd8+ {[%emt 0:00:31]} Qxd8 {[%emt 0:00:01]} 33. Bxe5
{[%emt 0:00:07]} Qe8 {[%emt 0:00:26]} 34. f4 {[%emt 0:00:06]} Bxe5 {[%emt 0:00:
00]} 35. Qxe5 {[%emt 0:00:38]} Qc6+ {[%emt 0:00:32]} 36. Kf2 {[%emt 0:00:33]}
h6 {[%emt 0:01:23]} 37. Qe2 {[%emt 0:01:22]} Qc5+ {[%emt 0:00:12]} 38. Kf1 {
[%emt 0:00:53]} Qc1+ {[%emt 0:00:49]} 39. Qe1 {[%emt 0:00:22]} Qc6 {[%emt 0:00:
00]} 40. Kf2 {[%emt 0:01:07]} Qc2+ {[%emt 0:00:23]} 41. Qe2 {[%emt 0:30:06]}
Qc5+ {[%emt 0:30:05]} 42. Kg2 {[%emt 0:01:23]} Qc6+ {[%emt 0:03:12]} 43. Kh3 {
[%emt 0:00:22]} Qc8+ {[%emt 0:00:38]} 44. Qg4 {[%emt 0:01:09]} Qc1 {[%emt 0:00:
00]} 45. Qf3 {[%emt 0:00:00]} Qc8+ {[%emt 0:00:00]} 46. f5 {[%emt 0:00:00]} Kh7
{[%emt 0:00:00]} 47. a4 {[%emt 0:00:00]} Qc2 {[%emt 0:00:00]} 48. Qd5 {[%emt 0:
00:00]} Kg8 {[%emt 0:00:00]} 49. a5 {[%emt 0:00:00]} Qb1 {[%emt 0:00:00]} 50.
Qf3 {[%emt 0:00:00]} Kh7 {[%emt 0:00:00]} 51. Kg4 {[%emt 0:00:00]} Qc2 {
[%emt 0:00:00]} 52. h4 {[%emt 0:00:00]} Qc5 {[%emt 0:00:00]} 53. Qb7 {[%emt 0:
00:00]} h5+ {[%emt 0:00:00]} 54. Kf4 {[%emt 0:00:00]} Qc1+ {[%emt 0:00:18]} 55.
Ke5 {[%emt 0:00:00]} Qe3+ {[%emt 0:01:36]} 56. Kd6 {[%emt 0:00:00]} Qxg3+ {
[%emt 0:01:04]} 57. Kd7 {[%emt 0:00:00]} Qd3+ {[%emt 0:04:18]} 58. Ke8 {
[%emt 0:00:00]} Qxf5 {[%emt 0:00:28]} 59. Qxa6 {[%emt 0:00:00]} Kg8 {[%emt 0:
00:00]} 60. Qc4 {[%emt 0:00:00]} Qe5+ {[%emt 0:00:14]} 61. Kd7 {[%emt 0:00:00]}
Qxa5 {[%emt 0:00:22]} 62. b4 {[%emt 0:00:00]} Qa7+ {[%emt 0:00:40]} 63. Kc6 {
[%emt 0:00:30]} Qa8+ {[%emt 0:00:24]} 64. Kb6 {[%emt 0:01:10]} Qb8+ {[%emt 0:
00:00]} 65. Ka5 {[%emt 0:00:30]} Qa8+ {[%emt 0:00:35]} 66. Kb5 {[%emt 0:00:39]}
Qb8+ {[%emt 0:00:33]} 67. Ka5 {[%emt 0:01:38]} Qd8+ {[%emt 0:00:28]} 68. Ka4 {
[%emt 0:00:32]} Qd1+ {[%emt 0:00:35]} 69. Kb5 {[%emt 0:00:37]} Qg4 {[%emt 0:00:
00]} 70. Kc5 {[%emt 0:01:35]} g5 {[%emt 0:00:35]} 71. b5 {[%emt 0:03:15]}
1/2-1/2

[Event "44th Chess Olympiad Women 2022"]
[Site "Chennai"]
[Date "2022.08.05"]
[Round "7.36"]
[White "Al-Fayyadh, Zainab Asif Abdulah"]
[Black "Hernandez Alvarez, Tania Regla"]
[Result "0-1"]
[WhiteElo "1749"]
[BlackElo "2058"]
[Annotator "NA RC"]
[PlyCount "108"]
[EventDate "2022.??.??"]
[TimeControl "60"]

1. e4 {[%emt 0:00:03]} c5 {[%emt 0:01:18]} 2. Nc3 {[%emt 0:00:08]} Nc6 {
[%emt 0:00:10]} 3. f4 {[%emt 0:00:06]} e6 {[%emt 0:00:06]} 4. Nf3 {[%emt 0:00:
00]} d5 {[%emt 0:00:26]} 5. Bb5 {[%emt 0:00:39]} Nge7 {[%emt 0:00:13]} 6. O-O {
[%emt 0:01:01]} a6 {[%emt 0:01:23]} 7. Bxc6+ {[%emt 0:00:24]} Nxc6 {[%emt 0:00:
00]} 8. exd5 {[%emt 0:02:10]} exd5 {[%emt 0:00:18]} 9. Kh1 {[%emt 0:02:09]} Be7
{[%emt 0:00:19]} 10. d4 {[%emt 0:08:12]} cxd4 {[%emt 0:02:19]} 11. Nxd4 {
[%emt 0:00:55]} O-O {[%emt 0:00:08]} 12. Nce2 {[%emt 0:01:22]} Bf6 {[%emt 0:00:
00]} 13. h3 {[%emt 0:08:52]} Re8 {[%emt 0:01:03]} 14. c3 {[%emt 0:00:45]} Qb6 {
[%emt 0:02:16]} 15. Nf3 {[%emt 0:01:17]} Bf5 {[%emt 0:03:22]} 16. Qxd5 {
[%emt 0:07:10]} Bxh3 {[%emt 0:06:25]} 17. Ng5 {[%emt 0:09:16]} Bxg5 {[%emt 0:
00:00]} 18. fxg5 {[%emt 0:04:51]} Be6 {[%emt 0:00:09]} 19. Qf3 {[%emt 0:10:48]}
Bc4 {[%emt 0:05:07]} 20. Ng3 {[%emt 0:14:12]} Bxf1 {[%emt 0:06:22]} 21. Qxf1 {
[%emt 0:00:12]} Ne5 {[%emt 0:01:24]} 22. b3 {[%emt 0:04:05]} Rad8 {[%emt 0:00:
00]} 23. Nf5 {[%emt 0:04:04]} Ng4 {[%emt 0:03:58]} 24. Ba3 {[%emt 0:01:25]} Qc7
{[%emt 0:11:27]} 25. g3 {[%emt 0:01:11]} g6 {[%emt 0:10:22]} 26. Nh6+ {[%emt 0:
00:00]} Nxh6 {[%emt 0:00:14]} 27. gxh6 {[%emt 0:00:14]} Qxg3 {[%emt 0:00:05]}
28. Qg2 {[%emt 0:05:33]} Qh4+ {[%emt 0:02:00]} 29. Qh2 {[%emt 0:00:22]} Re4 {
[%emt 0:00:58]} 30. Qxh4 {[%emt 0:00:54]} Rxh4+ {[%emt 0:00:10]} 31. Kg2 {
[%emt 0:00:05]} Rxh6 {[%emt 0:00:20]} 32. Re1 {[%emt 0:00:13]} Rh5 {[%emt 0:00:
00]} 33. Re7 {[%emt 0:00:24]} Ra5 {[%emt 0:00:20]} 34. Bb4 {[%emt 0:01:58]}
Rxa2+ {[%emt 0:00:22]} 35. Kg3 {[%emt 0:00:13]} b6 {[%emt 0:05:12]} 36. Rb7 {
[%emt 0:00:42]} b5 {[%emt 0:02:00]} 37. Be7 {[%emt 0:00:58]} Rd3+ {[%emt 0:00:
00]} 38. Kf4 {[%emt 0:00:08]} Kg7 {[%emt 0:06:12]} 39. Rb6 {[%emt 0:01:03]}
Rf2+ {[%emt 0:01:31]} 40. Ke4 {[%emt 0:00:36]} Rxc3 {[%emt 0:01:03]} 41. Kd4 {
[%emt 0:30:21]} Rxb3 {[%emt 0:31:08]} 42. Rxa6 {[%emt 0:05:02]} Rf4+ {[%emt 0:
00:00]} 43. Kc5 {[%emt 0:00:30]} Rf5+ {[%emt 0:00:26]} 44. Kd4 {[%emt 0:00:40]}
g5 {[%emt 0:04:42]} 45. Ra8 {[%emt 0:01:35]} g4 {[%emt 0:01:29]} 46. Bf8+ {
[%emt 0:00:35]} Kg6 {[%emt 0:00:16]} 47. Be7 {[%emt 0:00:39]} g3 {[%emt 0:00:
00]} 48. Rg8+ {[%emt 0:00:20]} Kh5 {[%emt 0:00:10]} 49. Ke4 {[%emt 0:00:36]}
Rbf3 {[%emt 0:00:43]} 50. Rg7 {[%emt 0:00:00]} R3f4+ {[%emt 0:00:00]} 51. Ke3 {
[%emt 0:00:00]} Rg4 {[%emt 0:00:00]} 52. Rxh7+ {[%emt 0:00:00]} Kg6 {[%emt 0:
00:00]} 53. Rh8 {[%emt 0:00:00]} Kg7 {[%emt 0:00:00]} 54. Rh1 {[%emt 0:00:00]}
g2 {[%emt 0:00:00]} 0-1

[Event "44th Chess Olympiad Women 2022"]
[Site "Chennai"]
[Date "2022.08.05"]
[Round "7.36"]
[White "Diaz Charpentier, Kristel Meliss"]
[Black "Sara Masood Abdullah"]
[Result "0-1"]
[WhiteElo "1989"]
[BlackElo "1677"]
[Annotator "NA RC"]
[PlyCount "92"]
[EventDate "2022.??.??"]
[TimeControl "60"]

1. Nf3 {[%emt 0:00:13]} Nf6 {[%emt 0:00:09]} 2. c4 {[%emt 0:00:03]} e6 {
[%emt 0:00:08]} 3. g3 {[%emt 0:00:11]} d5 {[%emt 0:00:17]} 4. Bg2 {[%emt 0:00:
00]} Be7 {[%emt 0:00:27]} 5. O-O {[%emt 0:00:07]} dxc4 {[%emt 0:01:45]} 6. Qa4+
{[%emt 0:00:06]} Bd7 {[%emt 0:01:08]} 7. Qxc4 {[%emt 0:00:05]} a6 {[%emt 0:00:
00]} 8. d4 {[%emt 0:01:52]} Bc6 {[%emt 0:02:01]} 9. Nc3 {[%emt 0:01:35]} O-O {
[%emt 0:01:12]} 10. Rd1 {[%emt 0:00:16]} b5 {[%emt 0:02:37]} 11. Qd3 {[%emt 0:
00:00]} b4 {[%emt 0:04:11]} 12. Nb1 {[%emt 0:00:10]} Be4 {[%emt 0:00:45]} 13.
Qc4 {[%emt 0:10:43]} Nbd7 {[%emt 0:10:38]} 14. Nbd2 {[%emt 0:04:51]} Bd5 {
[%emt 0:09:44]} 15. Qd3 {[%emt 0:08:14]} c5 {[%emt 0:03:32]} 16. e4 {[%emt 0:
00:00]} Bb7 {[%emt 0:12:02]} 17. e5 {[%emt 0:02:26]} Nd5 {[%emt 0:01:56]} 18.
Ne4 {[%emt 0:00:44]} Qc7 {[%emt 0:08:55]} 19. Neg5 {[%emt 0:12:02]} g6 {
[%emt 0:01:43]} 20. Bd2 {[%emt 0:02:06]} c4 {[%emt 0:02:17]} 21. Qe4 {[%emt 0:
00:00]} Kg7 {[%emt 0:07:49]} 22. Qg4 {[%emt 0:25:24]} Rae8 {[%emt 0:11:12]} 23.
Qh3 {[%emt 0:10:58]} h5 {[%emt 0:01:29]} 24. Nh4 {[%emt 0:00:28]} c3 {[%emt 0:
00:00]} 25. bxc3 {[%emt 0:03:04]} Bxg5 {[%emt 0:01:51]} 26. Bxg5 {[%emt 0:00:
00]} Nxc3 {[%emt 0:01:40]} 27. Re1 {[%emt 0:01:13]} Bxg2 {[%emt 0:00:28]} 28.
Nxg2 {[%emt 0:00:16]} Qc4 {[%emt 0:01:06]} 29. Nf4 {[%emt 0:01:39]} Qxd4 {
[%emt 0:05:44]} 30. Nxh5+ {[%emt 0:00:06]} gxh5 {[%emt 0:00:40]} 31. Qxh5 {
[%emt 0:00:01]} Rh8 {[%emt 0:00:14]} 32. Bf6+ {[%emt 0:01:26]} Nxf6 {[%emt 0:
00:00]} 33. Qg5+ {[%emt 0:00:01]} Kf8 {[%emt 0:01:47]} 34. exf6 {[%emt 0:00:02]
} Rh7 {[%emt 0:01:39]} 35. Re3 {[%emt 0:00:50]} Ne2+ {[%emt 0:00:23]} 36. Rxe2
{[%emt 0:01:55]} Qxa1+ {[%emt 0:00:05]} 37. Kg2 {[%emt 0:00:01]} Qd4 {[%emt 0:
00:00]} 38. Rd2 {[%emt 0:01:08]} Qe4+ {[%emt 0:00:12]} 39. f3 {[%emt 0:00:22]}
Qf5 {[%emt 0:00:24]} 40. Qxf5 {[%emt 0:00:46]} exf5 {[%emt 0:00:07]} 41. g4 {
[%emt 0:30:01]} Rc8 {[%emt 0:31:18]} 42. g5 {[%emt 0:00:06]} Ke8 {[%emt 0:00:
00]} 43. Kg3 {[%emt 0:00:58]} Rc4 {[%emt 0:00:28]} 44. Re2+ {[%emt 0:00:22]}
Kd8 {[%emt 0:00:15]} 45. Re7 {[%emt 0:00:12]} Rch4 {[%emt 0:00:12]} 46. Rxf7 {
[%emt 0:00:00]} f4+ {[%emt 0:00:00]} 0-1

[Event "44th Chess Olympiad Women 2022"]
[Site "Chennai"]
[Date "2022.08.05"]
[Round "7.36"]
[White "Ramirez Gonzalez, Maria Jose"]
[Black "Tiba, Mahdi Attiyah"]
[Result "0-1"]
[WhiteElo "1809"]
[BlackElo "1759"]
[Annotator "NA"]
[PlyCount "70"]
[EventDate "2022.??.??"]
[TimeControl "60"]

1. d4 {[%emt 0:00:04]} d5 {[%emt 0:00:07]} 2. c4 {[%emt 0:00:02]} c6 {[%emt 0:
00:00]} 3. cxd5 {[%emt 0:00:05]} cxd5 {[%emt 0:00:16]} 4. Nc3 {[%emt 0:00:04]}
Nc6 {[%emt 0:01:42]} 5. e4 {[%emt 0:00:23]} e6 {[%emt 0:06:19]} 6. e5 {[%emt 0:
00:00]} Bb4 {[%emt 0:02:05]} 7. Qg4 {[%emt 0:04:17]} Bf8 {[%emt 0:03:44]} 8.
Bd3 {[%emt 0:03:05]} a6 {[%emt 0:09:21]} 9. a4 {[%emt 0:10:33]} Nge7 {[%emt 0:
00:00]} 10. Nge2 {[%emt 0:08:34]} Qb6 {[%emt 0:17:37]} 11. O-O {[%emt 0:03:59]}
Ng6 {[%emt 0:13:51]} 12. Be3 {[%emt 0:06:47]} Bd7 {[%emt 0:09:29]} 13. h4 {
[%emt 0:07:29]} h5 {[%emt 0:05:45]} 14. Qg3 {[%emt 0:04:05]} Nge7 {[%emt 0:00:
00]} 15. Rfc1 {[%emt 0:08:33]} Nb4 {[%emt 0:06:52]} 16. Bb1 {[%emt 0:15:16]}
Nec6 {[%emt 0:03:05]} 17. f4 {[%emt 0:11:48]} Na5 {[%emt 0:02:28]} 18. Ba2 {
[%emt 0:02:28]} Nxa2 {[%emt 0:03:00]} 19. Rxa2 {[%emt 0:00:43]} Nc4 {[%emt 0:
00:00]} 20. Qf2 {[%emt 0:02:43]} g6 {[%emt 0:01:34]} 21. Ng3 {[%emt 0:03:09]}
Be7 {[%emt 0:00:51]} 22. Nf1 {[%emt 0:01:45]} Rc8 {[%emt 0:02:19]} 23. g3 {
[%emt 0:00:34]} Bb4 {[%emt 0:00:21]} 24. Qe2 {[%emt 0:01:30]} Qa5 {[%emt 0:00:
00]} 25. Ne4 {[%emt 0:01:43]} Ke7 {[%emt 0:01:21]} 26. Nf6 {[%emt 0:01:16]} Rc6
{[%emt 0:03:00]} 27. Nxd7 {[%emt 0:00:53]} Kxd7 {[%emt 0:00:02]} 28. b3 {
[%emt 0:00:38]} Nxe3 {[%emt 0:00:53]} 29. Rxc6 {[%emt 0:00:24]} Nxf1 {[%emt 0:
00:00]} 30. Rcc2 {[%emt 0:00:36]} Nxg3 {[%emt 0:00:09]} 31. Qg2 {[%emt 0:00:31]
} Nf5 {[%emt 0:00:09]} 32. Qg5 {[%emt 0:00:31]} Nxd4 {[%emt 0:00:19]} 33. Qf6 {
[%emt 0:00:09]} Rf8 {[%emt 0:00:17]} 34. Rg2 {[%emt 0:00:51]} Qc5 {[%emt 0:00:
00]} 35. Ra1 {[%emt 0:00:34]} Nc2+ {[%emt 0:00:26]} 0-1